bitfinex/quotes_ETHUSD_20250715
["timestamp","ask_amount","ask_price","bid_price","bid_amount"]
[1752554128760,0.1688,2957.4,2957.2,3.38157435]
[1752554128964,0.1688,2957.4,2957.3,3.38146282]
[1752554129261,0.8089,2957.9,2957.7,3.38091672]
[1752554129567,5.295,2957.8,2957.7,3.38091672]
[1752554130158,5.295,2958.0,2957.9,3.38069817]
[1752554130317,5.295,2958.2,2958.1,3.38052217]
[1752554130824,0.1688,2958.1,2958.0,3.3806113]
[1752554131861,5.4638,2958.1,2958.0,3.3806113]
[1752554132062,0.1688,2958.1,2958.0,4.13809783]
[1752554132560,0.1688,2958.1,2958.0,3.3806113]
[1752554134258,8.8843,2958.8,2958.5,3.37999107]
[1752554134423,5.295,2958.7,2958.6,3.37988488]
[1752554135450,5.295,2958.7,2958.5,3.37997728]
[1752554135628,0.1688,2958.6,2958.5,3.37997728]
[1752554136651,5.9238,2958.6,2958.5,3.37997728]
[1752554136852,5.4638,2958.6,2958.5,3.37997728]
[1752554137161,0.001,2958.9,2958.8,3.37974854]
[1752554140487,0.461,2958.9,2958.2,9.49081238]
[1752554140634,0.984,2958.8,2958.7,3.37979561]
[1752554140972,1.454,2958.8,2958.7,3.37979561]
[1752554141998,1.454,2958.8,2958.7,3.37986277]
[1752554143978,5.4628,2958.8,2958.7,3.37986277]
[1752554145896,5.9328,2958.8,2958.3,3.54908839]
[1752554146168,1.4369,2958.7,2958.5,3.38005498]
[1752554146534,0.47,2958.6,2958.3,0.1688]
[1752554146734,0.47,2958.6,2958.3,3.54906015]
[1752554146933,0.47,2958.6,2958.2,3.38037774]
[1752554147238,4.34676309,2958.7,2958.1,3.38043794]
[1752554147239,0.1688,2958.3,2958.1,3.38043794]
[1752554147471,5.294,2958.2,2958.0,3.38062564]
[1752554147679,5.764,2958.2,2957.7,0.1688]
[1752554147876,1.221,2958.1,2957.5,0.002]
[1752554148037,0.1688,2957.9,2957.6,3.38111982]
[1752554148236,5.293,2957.8,2957.6,3.38111982]
[1752554148672,5.293,2957.8,2957.7,3.38100551]
[1752554148967,5.24723819,2957.8,2957.5,0.002]
[1752554149174,5.24723819,2957.8,2957.6,3.38105163]
[1752554149541,5.71723819,2957.8,2957.5,0.002]
[1752554149741,0.6388,2957.7,2957.5,0.002]
[1752554150471,0.47,2957.6,2957.5,0.002]
[1752554151671,0.1688,2957.7,2957.5,0.002]
[1752554151880,0.1688,2957.7,2957.6,3.38111982]
[1752554152881,0.47,2958.0,2957.8,3.38081822]
[1752554153090,5.293,2957.9,2957.8,3.38081822]
[1752554153965,0.1688,2957.8,2957.7,3.38094849]
[1752554154167,0.6388,2957.8,2957.7,3.38094849]
[1752554154745,0.1688,2957.8,2957.7,3.38094849]
[1752554155473,0.6388,2957.8,2957.7,3.38094849]
[1752554155674,0.6388,2957.8,2957.6,3.38102916]
[1752554155895,0.47,2957.7,2957.6,3.38111982]
[1752554157884,5.763,2957.9,2957.8,3.3808912]
[1752554159182,0.1688,2957.8,2957.7,3.38094664]
[1752554159383,0.47,2957.8,2957.7,3.38094664]
[1752554160086,5.293,2957.8,2957.7,3.38100551]
[1752554160971,5.763,2957.8,2957.7,3.38100551]
[1752554163911,0.1688,2957.9,2957.8,3.3808912]
[1752554164075,1.2365,2958.4,2958.2,3.38032078]
[1752554164419,8.8795,2958.6,2957.9,3.85203309]
[1752554164572,0.001,2958.8,2958.5,3.38009126]
[1752554164779,5.293,2958.7,2958.6,3.37997701]
[1752554165013,0.001,2958.8,2958.7,3.37986277]
[1752554165173,5.4628,2958.8,2958.7,4.0558696]
[1752554165370,0.1698,2958.8,2958.7,4.5271696]
[1752554165575,0.001,2958.8,2958.7,5.3002696]
[1752554165979,0.001,2958.8,2958.7,5.33406822]
[1752554166418,0.71746309,2959.6,2959.5,3.37894914]
[1752554166576,8.114,2959.7,2959.6,3.37883497]
[1752554166776,13.407,2959.7,2959.6,3.37883497]
[1752554167709,0.1698,2959.9,2959.8,3.37860666]
[1752554167875,5.294,2959.9,2959.8,3.37860666]
[1752554168077,5.294,2959.9,2959.8,3.84990666]
[1752554168614,0.001,2959.9,2959.8,4.62343518]
[1752554168823,0.001,2959.9,2959.8,5.41863518]
[1752554169879,0.001,2959.9,2959.8,10.71063518]
[1752554170111,0.001,2959.9,2959.8,10.67684912]
[1752554172472,0.001,2959.9,2959.8,20.67684912]
[1752554172679,1e-08,2960.0,2959.9,14.20949251]
[1752554172914,1e-08,2960.0,2959.9,18.08385847]
[1752554173220,1e-08,2960.0,2959.9,23.37385847]
[1752554174921,1e-08,2960.0,2959.9,23.63121649]
[1752554175132,1e-08,2960.0,2959.9,18.08385847]
[1752554175615,1e-08,2960.0,2959.9,23.37285847]
[1752554176119,5.289,2960.9,2960.5,14.1490078]
[1752554176415,1.29958139,2961.4,2960.5,16.07050099]
[1752554176416,5.289,2961.3,2960.5,16.07050099]
[1752554176616,0.1698,2961.2,2960.5,16.07050099]
[1752554176792,0.1698,2961.2,2960.5,16.52810099]
[1752554176993,5.7576,2960.6,2959.9,4.05926596]
[1752554177196,0.4686,2960.6,2959.9,0.8113]
[1752554177493,5.7566,2960.6,2959.4,4.19030836]
[1752554177692,3.37889402,2959.6,2959.1,0.8273]
[1752554177894,0.4676,2959.5,2958.8,1.2849]
[1752554178091,5.288,2959.6,2958.8,1.2849]
[1752554178092,5.288,2959.6,2958.8,11.2849]
[1752554178301,0.4676,2959.8,2959.0,3.37949166]
[1752554178499,5.288,2959.5,2958.9,4.84606919]
[1752554178680,5.288,2959.5,2958.8,1.2849]
[1752554178681,0.7531,2959.4,2958.8,0.8273]
[1752554178882,1.2207,2959.4,2958.7,3.37986277]
[1752554179129,1.2207,2959.4,2958.8,10.0]
[1752554179626,1.2207,2959.4,2958.8,1.33798628]
[1752554179927,5.288,2959.7,2959.2,4.14234252]
[1752554180698,0.8209,2959.8,2959.4,3.37899375]
[1752554180898,5.288,2959.7,2959.5,3.41266543]
[1752554181099,5.288,2959.7,2959.4,3.37902019]
[1752554181528,5.288,2959.7,2959.5,3.37894245]
[1752554181898,5.288,2959.7,2959.6,3.37883497]
[1752554182098,0.4676,2960.0,2959.6,3.37883497]
[1752554182398,5.288,2959.9,2959.6,3.37883497]
[1752554182597,5.288,2959.9,2959.5,3.37890344]
[1752554183284,0.8209,2960.1,2959.5,3.37890344]
[1752554183485,5.287,2960.0,2959.5,3.37890344]
[1752554183728,5.7546,2960.0,2959.5,3.37890344]
[1752554183902,5.7546,2960.0,2959.6,3.37881546]
[1752554184098,0.8209,2960.1,2959.7,3.37866369]
[1752554184416,0.8209,2960.1,2959.4,3.37903522]
[1752554184725,5.287,2960.0,2959.6,3.37878057]
[1752554184922,5.287,2960.0,2959.5,0.3412827]
[1752554185125,5.287,2959.9,2959.8,3.3785388]
[1752554185329,5.287,2959.9,2959.7,3.37868134]
[1752554185537,5.287,2959.9,2959.8,3.37860666]
[1752554185697,5.287,2960.0,2959.8,3.37860666]
[1752554186037,5.287,2960.0,2959.8,3.3786066]
[1752554186238,1.277,2960.4,2959.4,3.37906332]
[1752554186389,5.287,2960.3,2959.8,3.37856918]
[1752554186589,0.4676,2960.2,2959.8,3.37856918]
[1752554186833,0.4676,2960.2,2959.7,3.37868552]
[1752554187074,5.4558,2960.1,2959.7,3.37868552]
[1752554187210,5.287,2960.0,2959.8,3.3785813]
[1752554187597,5.287,2960.0,2959.9,3.37849251]
[1752554188309,0.1688,2960.1,2959.8,3.37855395]
[1752554188593,5.287,2960.0,2959.8,3.73330335]
[1752554188792,0.1688,2960.1,2960.0,3.37837837]
[1752554188996,0.2525138,2960.6,2959.9,0.49138492]
[1752554189222,0.4676,2960.5,2960.0,3.37837837]
[1752554189432,0.4676,2960.4,2960.0,3.37837837]
[1752554189791,0.4676,2960.4,2960.3,3.378036]
[1752554190001,0.4213138,2960.6,2960.5,3.3778078]
[1752554190333,5.7073138,2960.6,2960.5,3.3778078]
[1752554190637,5.7073138,2960.6,2960.4,3.37791651]
[1752554190638,6.1749138,2960.6,2960.4,3.37787746]
[1752554190936,0.4676,2960.5,2960.4,3.37787746]
[1752554191319,5.7536,2960.5,2960.4,3.37787746]
[1752554191629,1.1909138,2960.6,2960.5,3.3778078]
[1752554191850,0.2525138,2960.6,2960.5,3.3778078]
[1752554192000,0.001,2960.6,2960.5,4.87505809]
[1752554192201,0.001,2960.6,2960.5,5.33265809]
[1752554192532,0.001,2960.6,2960.5,5.29888002]
[1752554193429,0.1688,2960.9,2960.8,3.37746554]
[1752554193617,5.286,2961.0,2960.9,3.37735148]
[1752554194217,0.001,2961.2,2961.0,3.37723741]
[1752554194431,0.001,2961.2,2961.1,3.37712336]
[1752554195741,0.001,2961.2,2961.1,3.83472336]
[1752554195940,0.001,2961.2,2961.1,3.37712336]
[1752554197547,0.001,2961.2,2961.1,3.54592336]
[1752554197717,0.001,2961.2,2961.1,4.87922884]
[1752554198065,0.001,2961.2,2961.1,4.84545761]
[1752554200538,0.001,2961.2,2961.1,3.54592336]
[1752554201547,0.001,2961.2,2961.1,3.97582336]
[1752554202188,0.001,2961.2,2961.1,3.54592336]
[1752554203131,0.001,2961.2,2961.1,3.97582336]
[1752554203338,0.001,2961.2,2961.1,4.00959459]
[1752554203537,0.001,2961.2,2961.1,5.31045473]
[1752554203751,0.001,2961.2,2961.1,10.59345473]
[1752554204438,0.001,2961.8,2961.7,3.3764392]
[1752554204638,0.001,2961.8,2961.7,3.57900359]
[1752554205061,0.001,2961.8,2961.7,3.5452392]
[1752554205376,0.001,2961.8,2961.7,4.23741746]
[1752554206533,0.001,2961.8,2961.7,4.99221746]
[1752554207595,0.001,2961.8,2961.7,4.23741746]
[1752554207746,0.001,2961.8,2961.7,3.5452392]
[1752554207942,0.001,2961.8,2961.7,3.3764392]
[1752554208148,1.2317,2961.8,2961.7,3.3764392]
[1752554208596,1.2317,2961.8,2960.9,0.6754817]
[1752554208807,0.4477,2961.7,2961.4,3.37671418]
[1752554209096,0.1688,2961.6,2961.4,3.37667113]
[1752554209299,0.1688,2961.6,2961.5,3.37666722]
[1752554209890,0.6165,2961.6,2961.5,3.37666722]
[1752554210396,0.001,2961.8,2961.7,3.3764392]
[1752554210900,0.001,2961.8,2961.7,3.5452392]
[1752554212743,0.4487,2961.8,2961.7,3.5452392]
[1752554213224,0.4487,2961.8,2961.6,3.37654389]
[1752554213434,0.4477,2961.7,2961.6,3.37654389]
[1752554213714,1.2404,2961.7,2961.5,3.3766128]
[1752554213875,0.1688,2961.6,2961.5,3.3766128]
[1752554214197,0.6165,2961.6,2961.5,3.3766128]
[1752554215576,0.6165,2961.6,2961.4,3.37671375]
[1752554215776,0.4477,2961.5,2961.4,3.37671375]
[1752554216711,0.1688,2961.6,2961.4,3.37671375]
[1752554216712,0.1688,2961.6,2961.5,3.37666722]
[1752554216900,0.6165,2961.6,2961.5,3.37666722]
[1752554217672,0.1688,2961.6,2961.5,3.37666722]
[1752554217910,0.001,2961.8,2961.7,3.3764392]
[1752554218975,0.001,2961.8,2961.7,3.5452392]
[1752554222684,0.001,2961.8,2961.7,3.3764392]
[1752554223222,0.4487,2961.8,2961.7,3.3764392]
[1752554223534,0.4487,2961.8,2961.6,3.54529284]
[1752554223721,0.1698,2961.8,2961.3,0.1688]
[1752554224222,0.1698,2961.8,2961.1,3.37704639]
[1752554224223,0.1688,2961.3,2961.1,3.37704639]
[1752554224388,0.8139,2961.5,2961.1,3.37704639]
[1752554224592,0.4477,2961.2,2961.1,3.37704639]
[1752554225613,0.1688,2961.1,2960.9,3.37734436]
[1752554225937,0.6165,2961.1,2961.0,3.37723741]
[1752554226967,0.7928,2961.0,2959.9,0.8122]
[1752554227119,0.4477,2960.9,2960.6,3.37762684]
[1752554227524,0.1688,2960.6,2960.3,3.37795183]
[1752554227761,1.2382,2960.5,2960.1,3.54697114]
[1752554227911,0.6165,2960.4,2960.3,3.37795155]
[1752554229008,0.1688,2960.4,2960.3,3.37795155]
[1752554231643,0.1688,2960.4,2960.3,4.05356138]
[1752554231834,0.8131,2960.8,2960.7,3.37757962]
[1752554232035,1.258,2960.8,2960.7,3.37757962]
[1752554232713,0.25933619,2961.0,2960.9,3.37735148]
[1752554233033,0.7586,2961.1,2961.0,3.37723741]
[1752554235010,1.2035,2961.1,2961.0,3.37723741]
[1752554235463,0.7586,2961.1,2961.0,3.37723741]
[1752554236176,0.4449,2961.4,2961.3,3.37689528]
[1752554236450,5.7219,2961.4,2961.3,3.37689528]
[1752554237349,0.1688,2961.3,2960.7,0.9825]
[1752554237571,0.6137,2961.3,2960.7,0.84094]
[1752554237729,0.1688,2961.0,2960.9,3.37730001]
[1752554238056,0.4449,2961.0,2960.8,3.37746554]
[1752554238265,0.7626,2961.2,2960.9,3.37734091]
[1752554238436,1.01643834,2961.2,2960.3,4.05359737]
[1752554238642,1.01643834,2961.2,2960.6,3.37769371]
[1752554238643,0.1688,2960.7,2960.6,3.37769371]
[1752554240166,0.4449,2960.9,2960.8,3.37746554]
[1752554240467,0.1688,2960.9,2960.8,3.37746554]
[1752554241722,0.1688,2960.9,2960.8,4.19516554]
[1752554241929,0.8089,2961.5,2960.8,1.25294821]
[1752554242156,0.1688,2961.4,2961.0,3.37722764]
[1752554242491,0.1688,2961.4,2961.3,3.37689528]
[1752554242998,0.6137,2961.4,2961.3,3.37689528]
[1752554243199,0.6137,2961.4,2961.1,3.37702664]
[1752554243499,0.4449,2961.3,2961.1,3.37702664]
[1752554243716,0.4449,2961.2,2961.1,3.37702664]
[1752554244076,0.70426051,2961.2,2961.1,3.37702664]
[1752554245674,0.7749,2961.0,2960.3,0.7656]
[1752554245999,0.7749,2961.0,2960.9,3.37733302]
[1752554247165,0.1688,2960.9,2960.7,3.3775071]
[1752554247512,0.4449,2960.8,2960.7,3.3775071]
[1752554247820,0.6137,2960.8,2960.7,3.3775071]
[1752554248907,0.6137,2960.8,2960.5,3.37780243]
[1752554249522,0.6137,2960.8,2960.6,3.37769371]
[1752554250121,0.6137,2960.8,2960.3,5.275]
[1752554250329,0.6137,2960.8,2960.1,0.7654]
[1752554250330,0.4449,2960.7,2960.5,3.37772744]
[1752554250487,0.1688,2960.6,2960.5,3.37772744]
[1752554250910,5.53336051,2961.2,2961.0,3.37722204]
[1752554251108,5.274,2961.2,2961.0,3.37722204]
[1752554251419,0.1688,2961.0,2960.9,3.37725949]
[1752554253288,0.1688,2961.0,2960.9,4.09892116]
[1752554254223,0.1688,2961.0,2960.9,4.90702116]
[1752554254520,5.274,2961.4,2961.3,3.37689528]
[1752554255221,0.001,2961.8,2961.7,3.3764392]
[1752554256926,0.001,2961.8,2961.7,3.87210359]
[1752554257221,0.001,2961.8,2961.7,5.36940841]
[1752554257889,0.001,2961.8,2961.7,4.90750841]
[1752554258300,0.001,2961.8,2961.7,4.87374402]
[1752554261309,0.001,2961.8,2961.7,3.5452392]
[1752554262137,0.001,2961.8,2961.7,3.3764392]
[1752554264730,0.001,2961.8,2961.7,3.57900359]
[1752554265190,0.001,2961.8,2961.7,8.84900359]
[1752554265395,0.001,2961.8,2961.7,9.2601392]
[1752554265695,0.001,2961.8,2961.7,10.60014758]
[1752554267832,0.001,2961.8,2961.7,10.15524758]
[1752554277846,0.001,2961.8,2961.7,10.60014758]
[1752554279478,0.001,2962.4,2962.3,3.37575532]
[1752554279779,0.169,2962.4,2962.3,3.37575532]
[1752554280811,0.169,2962.4,2962.3,4.05091666]
[1752554280945,0.001,2963.0,2962.9,3.37507172]
[1752554285077,0.001,2963.0,2962.9,3.81997172]
[1752554285881,0.001,2963.0,2962.9,3.37507172]
[1752554286188,0.001,2963.0,2962.9,3.81997172]
[1752554286510,0.001,2963.0,2962.9,5.15923646]
[1752554287013,0.001,2963.0,2962.9,5.19298717]
[1752554287475,1e-08,2963.0,2962.9,5.19298717]
[1752554287674,1e-08,2963.2,2963.1,3.37484391]
[1752554287902,1e-08,2963.2,2963.1,10.36735482]
[1752554288079,1e-08,2963.2,2963.1,10.53535482]
[1752554288281,1e-08,2963.2,2963.1,10.98025482]
[1752554289217,1e-08,2963.2,2963.1,20.98025482]
[1752554289512,1e-08,2963.2,2963.1,30.85033106]
[1752554290379,1e-08,2963.2,2963.1,31.40033106]
[1752554292116,1e-08,2963.2,2963.1,26.13733106]
[1752554292321,1e-08,2963.2,2963.1,31.39933106]
[1752554293088,0.001,2964.4,2964.3,3.37347771]
[1752554293630,0.001,2964.4,2964.3,3.54147771]
[1752554294886,0.001,2964.4,2964.3,3.57521248]
[1752554295136,0.001,2964.4,2964.3,3.54147771]
[1752554297033,1.2297,2964.4,2964.3,3.54147771]
[1752554297599,0.4714,2964.4,2964.3,3.54147771]
[1752554297838,0.001,2964.4,2964.3,3.54147771]
[1752554299239,0.001,2964.4,2964.3,4.23298405]
[1752554301145,0.001,2964.4,2964.3,5.09041882]
[1752554301322,0.001,2964.4,2964.3,5.55401882]
[1752554301839,0.001,2964.4,2964.3,5.05668405]
[1752554302951,0.001,2964.4,2964.3,4.23298405]
[1752554305843,0.4714,2964.4,2964.3,4.23298405]
[1752554306021,0.4714,2964.4,2964.3,3.37347771]
[1752554306952,0.001,2964.4,2964.3,3.37347771]
[1752554307136,0.001,2964.4,2964.3,3.40721248]
[1752554307456,0.001,2964.4,2964.3,3.54147771]
[1752554307668,0.6394,2964.9,2964.8,3.37290879]
[1752554307952,0.001,2964.9,2964.8,3.37290879]
[1752554308533,0.4714,2964.9,2964.8,3.37290879]
[1752554309722,0.001,2964.9,2964.8,3.37290879]
[1752554309948,0.001,2964.9,2964.8,3.40663787]
[1752554310258,0.001,2964.9,2964.8,3.37290879]
[1752554310639,0.4714,2964.9,2964.8,3.37290879]
[1752554313837,0.001,2964.9,2964.8,3.40663787]
[1752554314663,0.001,2964.9,2964.8,4.10140296]
[1752554314839,0.001,2964.9,2964.8,4.23567388]
[1752554315648,0.001,2964.9,2964.8,4.26940296]
[1752554316466,1e-08,2965.0,2964.9,4.12969503]
[1752554316762,1e-08,2965.0,2964.9,3.37279503]
[1752554317388,1e-08,2965.0,2964.9,5.08821376]
[1752554317556,1e-08,2965.0,2964.9,15.08821376]
[1752554317773,1e-08,2965.0,2964.9,15.84981376]
[1752554319293,1e-08,2965.6,2965.5,3.37211262]
[1752554319477,1e-08,2965.6,2965.5,16.36816085]
[1752554319800,1e-08,2965.6,2965.5,16.50243973]
[1752554320195,1e-08,2965.6,2965.5,26.50243973]
[1752554320987,1e-08,2965.6,2965.5,26.93263973]
[1752554321304,1e-08,2965.6,2965.5,26.50243973]
[1752554321873,1e-08,2965.6,2965.5,26.93263973]
[1752554322806,1e-08,2965.6,2965.5,26.50243973]
[1752554323985,1e-08,2965.6,2965.5,26.93263973]
[1752554324502,1e-08,2966.2,2966.1,3.37143049]
[1752554325006,1e-08,2966.2,2966.1,3.57314479]
[1752554325503,1e-08,2966.2,2966.1,3.53943049]
[1752554326004,1e-08,2966.2,2966.1,3.57314479]
[1752554327477,1e-08,2966.2,2966.1,14.33244479]
[1752554327675,1e-08,2966.2,2966.1,17.54669645]
[1752554328593,0.46800001,2966.2,2966.1,16.78739645]
[1752554328796,0.46800001,2966.2,2966.1,18.78743049]
[1752554329297,1e-08,2966.2,2966.1,18.78743049]
[1752554329984,1e-08,2966.2,2966.1,19.57583049]
[1752554330181,1e-08,2966.2,2966.1,18.78743049]
[1752554330393,1e-08,2966.2,2966.1,21.00332734]
[1752554331726,0.46800001,2966.2,2966.1,5.75532734]
[1752554332019,0.46800001,2966.2,2966.1,3.53943049]
[1752554334031,1e-08,2966.2,2966.1,3.57314479]
[1752554334402,1e-08,2966.2,2966.1,8.78443049]
[1752554337521,1e-08,2966.2,2966.1,3.53943049]
[1752554337701,1e-08,2966.2,2966.1,9.47552734]
[1752554337905,1e-08,2966.2,2966.1,4.23052734]
[1752554338112,1e-08,2966.2,2966.1,9.50824164]
[1752554338319,1e-08,2966.2,2966.1,9.47452734]
[1752554344691,1e-08,2966.2,2966.1,4.23052734]
[1752554344897,1e-08,2966.2,2966.1,9.50624164]
[1752554345229,1e-08,2966.2,2966.1,9.47252734]
[1752554346037,0.8312,2966.1,2965.6,2.69326397]
[1752554346236,0.46800001,2966.2,2965.6,2.69326397]
[1752554346237,0.9992,2965.9,2965.6,3.37199892]
[1752554346403,0.9992,2965.9,2964.8,4.15246933]
[1752554346602,0.8312,2965.7,2965.6,3.37193611]
[1752554346796,1.2992,2965.7,2965.6,3.37193611]
[1752554347047,0.7932,2965.6,2964.4,3.37529657]
[1752554347199,0.7932,2965.4,2965.1,3.37256165]
[1752554347398,0.7932,2965.4,2965.2,3.37243882]
[1752554347399,0.468,2965.3,2965.2,3.37243882]
[1752554352333,1.2585,2965.3,2965.2,3.37243882]
[1752554354446,0.78,2965.1,2964.9,3.37269576]
[1752554354754,0.78,2965.1,2965.0,3.37268128]
[1752554355144,1.2334,2965.1,2965.0,3.37268128]
[1752554358486,0.168,2965.0,2964.9,3.37273702]
[1752554358759,0.6214,2965.0,2964.9,3.37273702]
[1752554358958,0.6214,2965.0,2964.8,3.37282262]
[1752554359158,5.6934,2964.9,2964.7,3.37301072]
[1752554359359,1.2303,2964.8,2964.7,3.37301072]
[1752554360482,1.2303,2964.8,2964.6,3.37308548]
[1752554360483,0.168,2964.7,2964.6,3.37308548]
[1752554360628,0.792,2964.7,2964.6,3.37308548]
[1752554360829,1.2454,2964.7,2964.5,3.37317002]
[1752554361062,0.4534,2964.6,2964.5,3.37325012]
[1752554361268,0.4534,2964.6,2964.4,0.002]
[1752554361269,0.96,2964.5,2964.4,0.002]
[1752554361570,0.96,2964.5,2964.4,3.37536391]
[1752554361734,1.9634,2964.5,2964.4,0.002]
[1752554363555,7.2034,2964.5,2964.4,3.37536391]
[1752554364262,7.2034,2964.5,2964.4,0.002]
[1752554364665,7.9034,2964.5,2964.4,0.002]
[1752554365145,7.9034,2964.5,2964.4,3.37536391]
[1752554365780,7.9034,2964.5,2964.4,0.002]
[1752554366156,7.9034,2964.5,2964.4,3.37536391]
[1752554367659,7.9024,2964.5,2964.4,3.37536391]
[1752554368908,7.9024,2964.5,2964.4,0.002]
[1752554369117,7.9024,2964.5,2964.4,3.37536391]
[1752554370918,2.6634,2964.5,2964.4,3.37536391]
[1752554371094,7.9024,2964.5,2964.4,3.37536391]
[1752554371611,1.418,2964.5,2964.4,3.37536391]
[1752554371810,6.106,2964.5,2964.4,3.37536391]
[1752554371976,6.5594,2964.5,2964.4,3.37536391]
[1752554372888,7.3288,2964.5,2964.4,3.37536391]
[1752554376023,7.8788,2964.5,2964.4,0.002]
[1752554381837,7.8788,2964.5,2964.4,3.37536391]
[1752554382410,6.104,2964.5,2964.4,3.37536391]
[1752554385323,7.0829,2964.5,2964.4,0.002]
[1752554385529,7.8644,2964.5,2964.4,0.002]
[1752554389361,7.8644,2964.5,2964.4,3.37536391]
[1752554389362,0.868,2964.5,2964.4,3.37536391]
[1752554389724,0.168,2964.5,2964.4,3.37536391]
[1752554391234,0.168,2964.5,2964.4,3.81426391]
[1752554391652,0.168,2964.5,2964.4,3.37536391]
[1752554393258,0.168,2964.5,2964.4,4.65476697]
[1752554396343,0.168,2964.5,2964.4,5.09366697]
[1752554396539,1e-08,2964.5,2964.4,16.91301645]
[1752554396743,1e-08,2964.5,2964.4,16.87928282]
[1752554398228,1e-08,2964.5,2964.4,10.32566697]
[1752554399374,1e-08,2964.5,2964.4,10.32366697]
[1752554400439,1e-08,2964.5,2964.4,9.88476697]
[1752554401041,1e-08,2964.5,2964.4,10.32366697]
[1752554401243,1e-08,2964.5,2964.4,9.88476697]
[1752554402570,1e-08,2964.5,2964.4,10.32366697]
[1752554403669,1e-08,2964.5,2964.4,11.08526697]
[1752554405167,1e-08,2964.5,2964.4,10.64436697]
[1752554406569,1e-08,2964.5,2964.4,4.65476697]
[1752554406890,0.59690001,2964.5,2964.4,3.37536391]
[1752554407690,1.37220001,2964.5,2964.4,0.002]
[1752554407892,1.92220001,2964.5,2964.4,0.002]
[1752554408696,5.29545013,2964.5,2964.4,0.002]
[1752554409084,15.29545013,2964.5,2964.4,0.002]
[1752554409269,11.92220001,2964.5,2964.4,0.002]
[1752554409487,15.29545013,2964.5,2964.4,0.002]
[1752554410563,15.29645013,2964.5,2964.4,0.002]
[1752554411492,15.99645013,2964.5,2964.4,0.002]
[1752554412100,21.22345013,2964.5,2964.4,0.002]
[1752554413202,17.85020001,2964.5,2964.4,0.002]
[1752554413504,2.62320001,2964.5,2964.4,0.002]
[1752554413704,7.29920001,2964.5,2964.4,0.002]
[1752554414304,7.84920001,2964.5,2964.4,0.002]
[1752554415493,11.22245013,2964.5,2964.4,0.002]
[1752554415690,21.22245013,2964.5,2964.4,0.002]
[1752554417139,0.55,2964.3,2963.2,0.002]
[1752554417270,0.8213,2963.4,2963.2,0.002]
[1752554417621,5.776,2963.3,2963.2,0.002]
[1752554417912,0.55,2963.3,2963.2,3.37673002]
[1752554418125,5.226,2963.3,2963.2,3.37673002]
[1752554420279,1.8525,2963.7,2963.5,3.37430667]
[1752554420496,5.6984,2963.6,2963.4,3.37448321]
[1752554421332,0.7,2963.5,2963.4,3.37448321]
[1752554421817,0.168,2964.0,2963.9,3.37393299]
[1752554424634,0.6404,2964.0,2963.9,3.37393299]
[1752554425835,0.168,2964.0,2963.9,3.37393299]
[1752554431738,0.868,2964.0,2963.9,3.37393299]
[1752554432106,0.868,2964.0,2963.9,4.14713299]
[1752554432329,0.00100001,2964.5,2964.4,3.37336391]
[1752554433916,0.00100001,2964.5,2964.4,4.14066391]
[1752554434128,0.16900001,2964.5,2964.4,4.14066391]
[1752554436140,0.16900001,2964.5,2964.4,3.37336391]
[1752554439932,0.16900001,2964.5,2964.4,5.6481968]
[1752554440313,0.00100001,2964.5,2964.4,5.6481968]
[1752554441552,0.00100001,2964.5,2964.4,10.90193043]
[1752554441849,0.00100001,2964.5,2964.4,11.0361968]
[1752554442053,0.00100001,2964.5,2964.4,11.0351968]
[1752554443057,5.6893,2965.2,2965.1,3.37256753]
[1752554445160,5.6893,2965.2,2965.0,3.40363368]
[1752554445346,5.219,2965.2,2965.0,0.03099999]
[1752554445552,1.2765,2965.1,2965.0,0.03099999]
[1752554446143,1.2765,2965.1,2965.0,3.40368127]
[1752554447642,5.219,2965.2,2965.1,3.37256753]
[1752554448048,5.6893,2965.2,2965.1,3.37256753]
[1752554448964,0.168,2965.1,2965.0,3.40367086]
[1752554449184,0.6383,2965.1,2965.0,3.40367086]
[1752554450136,0.6383,2965.1,2965.0,0.03099999]
[1752554450545,1.9939,2965.1,2965.0,0.03099999]
[1752554452983,7.2099,2965.1,2965.0,0.03099999]
[1752554461390,7.2099,2965.1,2965.0,3.40368127]
[1752554461598,0.4703,2965.9,2965.1,0.8248]
[1752554461902,0.168,2965.5,2965.4,3.37222634]
[1752554462814,0.168,2965.5,2965.3,3.37230863]
[1752554463109,0.168,2965.5,2965.4,3.37222634]
[1752554464700,0.6383,2965.5,2965.3,3.37229886]
[1752554464905,5.213,2965.4,2965.3,3.37229886]
[1752554465703,0.55,2965.3,2965.0,0.03099999]
[1752554466011,0.939,2965.1,2965.0,0.03099999]
[1752554466917,0.168,2965.1,2965.0,3.40368127]
[1752554467229,0.168,2965.1,2965.0,0.03099999]
[1752554467373,0.168,2965.1,2965.0,3.40368127]
[1752554468697,0.168,2965.1,2965.0,0.03099999]
[1752554469435,0.6383,2965.1,2965.0,0.03099999]
[1752554469596,1.1883,2965.1,2965.0,0.03099999]
[1752554471505,2.0178,2965.1,2965.0,0.03099999]
[1752554472035,5.39036753,2965.1,2965.0,0.03099999]
[1752554473132,2.0178,2965.1,2965.0,0.03099999]
[1752554473454,7.2288,2965.1,2965.0,0.03099999]
[1752554476258,7.2288,2965.1,2965.0,0.03299999]
[1752554478946,5.8493,2965.1,2965.0,0.03299999]
[1752554479847,5.379,2965.1,2965.0,0.03299999]
[1752554481024,5.379,2965.1,2965.0,3.40568127]
[1752554481559,5.379,2965.1,2965.0,0.03299999]
[1752554481929,5.379,2965.1,2965.0,3.40568127]
[1752554482563,5.377,2965.1,2965.0,3.85578127]
[1752554482736,5.377,2965.1,2965.0,4.57863934]
[1752554484957,0.168,2965.1,2965.0,4.57863934]
[1752554485163,0.001,2965.5,2965.4,3.37222634]
[1752554485366,5.209,2965.5,2965.4,3.37222634]
[1752554485673,5.209,2965.5,2965.4,4.62462634]